Cogmind - Beta 10.2 @@@ ROGUE MODE // 2021.03.26 @ 21:18:58 Player: cavemonk Result: Destroyed by 4E-1OY(z) with Zionite Laser-S Performance ------------- Evolutions (3) 1500 Regions Visited (10) 2000 Robots Destroyed (91) 455 Value Destroyed (2413) 2413 Prototype IDs (42) 840 Alien Tech Used (0) 0 Bonus (279) 279 TOTAL SCORE: 7487 Bonus ------- High Alert Combat Kills 128 Aligned with FarCom 300 Friendly Fire -149 Cogmind --------- Core Integrity 0/700 Matter 290/300 Energy 34/100 System Corruption 0% Temperature Cool (11) Movement Flying (50) Location -7/Deep Caves Parts ------- > --- POWER (1) -------- (None) > --- PROPULSION (4) --- Flying Fortress v7 > --- UTILITY (6) ------ Advanced Signal Interpreter Advanced Signal Interpreter Hacking Suite > --- WEAPON (2) ------- (None) > --- INVENTORY (4) ---- (None) Peak State ------------ > --- POWER ------------ Light Angular Momentum Engine > --- PROPULSION ------- Flying Fortress v7 > --- UTILITY ---------- Large Storage Unit Large Storage Unit Large Storage Unit Advanced Sensor Array Advanced Signal Interpreter Chronowheel > --- WEAPON ----------- Chainsword > --- INVENTORY -------- Cooled Ion Engine Cooled Ion Engine Cooled VTOL Module Cooled VTOL Module Cooled VTOL Module Cooled VTOL Module Advanced Sensor Array Advanced Signal Interpreter Long-range Terrain Scanner Cloak of Protection Improved Light Armor Plating Hacking Suite Long-range Tractor Beam Thief Drone Bay Enhanced Autogun Enhanced Autogun Advanced EMP Blaster Proton Missile Launcher Rocket Launcher Improved Grenade Launcher [Rating: 71] Favorites ----------- Power Light Angular Momentum Engine Engine Light Angular Momentum Engine Power Core Micro Nuclear Core Propulsion Cooled VTOL Module Treads Light Treads Leg Aluminum Leg Wheel Wheel Flight Unit Cooled VTOL Module Utility Advanced Signal Interpreter Device Advanced Sensor Array Storage Large Storage Unit Processor Advanced Signal Interpreter Hackware Hacking Suite Protection Hardened Light Armor Plating Weapon Chainsword Energy Gun Beamcaster Ballistic Gun Assault Rifle Ballistic Cannon Bore Cannon Launcher Advanced EMP Blaster Impact Weapon Great Maul Slashing Weapon Chainsword Build | -11 -10 -10 -10 -9 -8 -7 -7 -7 -7 -7 ------- Run | Scr Mat Min Exi Min Mat Fac Low Low Zio Dee Slots Evolved 6 | . . . . . 4 2 . . . . Power . | . . . . . . . . . . . Propulsion 2 | . . . . . 2 . . . . . Utility 4 | . . . . . 2 2 . . . . Weapon . | . . . . . . . . . . . Parts Attached 163 | 5 22 3 5 9 49 55 2 2 7 4 Power 11 | . 1 . . 2 4 4 . . . . Engine 7 | . 1 . . 2 1 3 . . . . Core 4 | . . . . . 3 1 . . . . Reactor . | . . . . . . . . . . . Propulsion 35 | 4 7 2 3 1 9 7 . . . 2 Treads 15 | 1 4 1 2 1 5 . . . . 1 Leg . | . . . . . . . . . . . Wheel 8 | 3 3 1 1 . . . . . . . Hover . | . . . . . . . . . . . Flight 12 | . . . . . 4 7 . . . 1 Utility 50 | 1 4 . . . 9 30 1 1 4 . Device 20 | . . . . . 3 11 1 1 4 . Storage 11 | 1 4 . . . 3 3 . . . . Processor 3 | . . . . . . 3 . . . . Hackware 4 | . . . . . . 4 . . . . Protection 12 | . . . . . 3 9 . . . . Artifact . | . . . . . . . . . . . Weapon 67 | . 10 1 2 6 27 14 1 1 3 2 Energy Gun 16 | . . . . 4 11 . . . . 1 Energy Cannon . | . . . . . . . . . . . Ballistic Gun 15 | . 5 1 1 2 1 4 . . 1 . Ballistic Cannon 1 | . . . . . . . . . 1 . Launcher 25 | . 5 . 1 . 12 7 . . . . Special Weapon . | . . . . . . . . . . . Impact Weapon 2 | . . . . . 2 . . . . . Slashing Weapon 8 | . . . . . 1 3 1 1 1 1 Piercing Weapon . | . . . . . . . . . . . Special Melee Weapon . | . . . . . . . . . . . Unidentified Prototypes 6 | . . . . . 3 1 . . 1 1 Parts Lost 17 | . . . . . 4 2 . . . 11 Power 2 | . . . . . . 1 . . . 1 Propulsion 6 | . . . . . 1 . . . . 5 Utility 5 | . . . . . 2 1 . . . 2 Weapon 4 | . . . . . 1 . . . . 3 Highest Loss Streak 11 | . . . . . 2 1 . . . 11 Average Slot Usage (%) 94 | . 100 100 100 99 92 74 91 88 95 90 Engine 7 | . 14 14 14 14 2 5 7 7 7 6 Treads 4 | . 17 21 20 28 27 . . . . . Flight 24 | . . . . . 1 7 30 30 30 27 Device 18 | . . . . . 4 5 22 21 22 19 Storage 5 | . 28 28 28 28 26 21 . . . . Processor 12 | . . . . . . 5 15 15 15 15 Hackware 5 | . . . . . . 7 7 7 7 7 Energy Gun 1 | . 2 . . 15 8 . . . . . Ballistic Gun 1 | . 17 21 28 10 . 4 . . . 6 Ballistic Cannon 2 | . . . . . . . . . 2 . Launcher 1 | . 7 6 . . 9 7 . . . . Slashing Weapon 5 | . . . . . . 1 6 5 6 5 Naked Turns . | . . . . . . . . . . . Heaviest Build 74 | 15 42 42 42 47 69 74 19 19 44 23 Greatest Support 83 | 20 40 40 40 48 83 83 28 28 20 72 Greatest Overweight (x) 14 | 4 4 4 4 2 1 1 1 1 14 6 Average Overweight (x) 3 | . 1 2 2 . . . . . 7 . Largest Inventory Capacity 24 | 8 16 16 16 16 24 24 4 4 4 4 Average Capacity 6 | 6 12 16 16 16 18 20 4 4 4 4 Most Carried 24 | 6 16 16 16 16 24 24 4 4 4 4 Average Carried 6 | 4 11 15 15 15 18 19 4 4 4 3 Final Capacity 24 | 8 16 16 16 16 24 4 4 4 4 4 Final Carried 24 | 4 16 16 16 16 24 4 4 4 4 . Class Distribution -------------------- 77% | Assassin 14% | Mutant 4% | Hauler-Mutant Dominant Class ---------------- Mutant | -10/Materials Mutant | -10/Mines Mutant | -10/Exiles Mutant | -9/Mines Mutant | -8/Materials Hauler-Mutant | -7/Factory Assassin | -7/Lower Caves Assassin | -7/Lower Caves Assassin | -7/Zion Assassin | -7/Deep Caves Resources | -11 -10 -10 -10 -9 -8 -7 -7 -7 -7 -7 ----------- Run | Scr Mat Min Exi Min Mat Fac Low Low Zio Dee Matter Collected 3369 | 262 704 367 30 182 791 707 199 20 60 47 Remotely . | . . . . . . . . . . . Salvage Created 3904 | 92 545 38 . 264 1232 1406 258 69 . . Parts 206 | 7 42 7 . 15 71 62 2 . . . Haulers Intercepted 8 | . 1 . . . 4 3 . . . . Recyclers Shooed 5 | 1 2 . . 1 1 . . . . . Parts Field Recycled . | . . . . . . . . . . . Retrieved Matter . | . . . . . . . . . . . Parts Self-Destructed 11 | . . . . . . . 3 6 2 . Prevented . | . . . . . . . . . . . Kills | -11 -10 -10 -10 -9 -8 -7 -7 -7 -7 -7 ------- Run | Scr Mat Min Exi Min Mat Fac Low Low Zio Dee Combat Hostiles Destroyed 48 | . 10 4 . 5 14 15 . . . . Guns 14 | . 4 1 . 3 4 2 . . . . AOE 31 | . 6 3 . 2 8 12 . . . . Classes Destroyed 13 | 2 5 . . 1 3 1 1 . . . Worker 6 | . . . . . 2 4 . . . . Builder 4 | . . . . . 3 1 . . . . Tunneler 4 | 1 . . . . 1 2 . . . . Hauler 8 | . 1 . . . 4 3 . . . . Recycler 10 | 1 4 . . . 2 3 . . . . Operator 3 | . 2 . . . 1 . . . . . Watcher 7 | . 2 . . . 2 3 . . . . Swarmer 10 | . 6 4 . . . . . . . . Grunt 31 | . 4 . . 3 11 13 . . . . Brawler 3 | . . . . 2 1 . . . . . Sentry 3 | . . . . . 2 1 . . . . Programmer 1 | . . . . . . 1 . . . . Tinkerer 1 | . . . . . . . 1 . . . Thug 1 | . . . . 1 . . . . . . Best Kill Streak 7 | 2 5 3 . 3 7 5 . . . . Combat Bots Only 4 | . 3 3 . 3 3 4 . . . . Max Kills in Single Turn 4 | 1 3 3 . 1 4 3 1 . . . Gunslinging . | . . . . . . . . . . . Exploded 3 | . 3 3 . 1 3 2 . . . . Melee . | . . . . . . . . . . . Uniques/NPCs Destroyed . | . . . . . . . . . . . Combat | -11 -10 -10 -10 -9 -8 -7 -7 -7 -7 -7 -------- Run | Scr Mat Min Exi Min Mat Fac Low Low Zio Dee Damage Taken 3377 | . 150 28 . 79 662 965 . 24 . 1469 Core 801 | . 19 . . 33 29 201 . . . 519 Absorbed by Shields 33 | . . . . . 33 . . . . . Core Remaining (%) 91 | 100 . . . 79 94 . . . . . Volleys Fired 188 | 4 37 2 . 17 72 42 . . . 14 Largest 2 | 2 2 2 . 2 2 2 . . . 2 Hottest 144 | 60 60 40 . 98 144 75 . . . 106 Shots Fired 301 | 5 65 3 . 31 106 74 . . . 17 Gun 199 | 5 56 2 . 28 61 30 . . . 17 Cannon . | . . . . . . . . . . . Launcher 102 | . 9 1 . 3 45 44 . . . . Special . | . . . . . . . . . . . Kinetic 119 | 4 55 2 . 14 . 30 . . . 14 Thermal 54 | . . . . 14 37 . . . . 3 Explosive 39 | . 9 1 . 3 20 6 . . . . Electromagnetic 89 | 1 1 . . . 49 38 . . . . Robot Hit Streak 31 | 2 10 3 . 7 31 7 . . . 1 Robot Miss Streak 6 | 1 3 . . 4 1 3 . . . 6 Penetration Max . | . . . . . . . . . . . Secondary Targets . | . . . . . . . . . . . Shots Hit Robots 152 | 3 39 1 . 19 49 30 5 2 . 4 Core Hits 145 | 3 30 4 . 10 51 43 3 . . 1 Critical Hits 3 | . 1 . . . . 2 . . . . Critical Kills 1 | . . . . . . 1 . . . . Critical Parts Destroyed 2 | . 1 . . . . 1 . . . . Melee Attacks 47 | . . . . . 5 12 5 4 20 1 Impact 4 | . . . . . 4 . . . . . Slashing 43 | . . . . . 1 12 5 4 20 1 Piercing . | . . . . . . . . . . . Sneak Attacks 4 | . . . . . . 3 1 . . . Combat Hostiles . | . . . . . . . . . . . Follow-up Attacks . | . . . . . . . . . . . Damage Inflicted 7607 | 37 801 147 . 565 2425 2801 552 143 . 136 Guns 1986 | 37 495 22 . 331 684 322 . . . 95 Cannons . | . . . . . . . . . . . Explosions 4485 | . 306 125 . 233 1741 2080 . . . . Melee 1135 | . . . . . . 399 552 143 . 41 Ramming 1 | . . . . 1 . . . . . . Kinetic 1099 | 37 480 22 . 143 . 322 . . . 95 Thermal 1109 | . . . . 188 724 197 . . . . Explosive 1562 | . 306 125 . 233 537 361 . . . . Electromagnetic 2701 | . 15 . . . 1164 1522 . . . . Impact . | . . . . . . . . . . . Slashing 1135 | . . . . . . 399 552 143 . 41 Piercing . | . . . . . . . . . . . Highest Corruption 1 | . . . . . 1 1 1 1 1 . Average Corruption 1 | . . . . . 1 1 1 1 1 . Corruption Purged . | . . . . . . . . . . . Effects 14 | . . . . . 5 2 3 4 . . Message Errors 5 | . . . . . 2 . 1 2 . . Energy Discharges 3 | . . . . . 2 . . 1 . . Data Loss (minor) 5 | . . . . . 1 1 2 1 . . Targeting Errors 1 | . . . . . . 1 . . . . Overload Shots . | . . . . . . . . . . . Overflow Damage 397 | . . . . . 22 164 139 72 . . Projectiles . | . . . . . . . . . . . Explosions 87 | . . . . . 22 65 . . . . Melee 310 | . . . . . . 99 139 72 . . Knockbacks . | . . . . . . . . . . . Impact . | . . . . . . . . . . . Kinetic . | . . . . . . . . . . . Secondary . | . . . . . . . . . . . Self-Inflicted Damage 661 | . 1 10 . . 215 435 . . . . Shots 22 | . 1 1 . . 12 8 . . . . Rammed 3 | . . . . 2 1 . . . . . Targets Rammed 3 | . . . . 2 1 . . . . . Kicked . | . . . . . . . . . . . Crushed . | . . . . . . . . . . . Highest Temperature 195 | . . . . 156 195 66 48 123 . 150 Average Temperature 58 | . . . . 60 75 19 36 59 . 90 Received Heat Transfer 920 | . 48 . . 42 212 186 . . . 432 Siege Activations . | . . . . . . . . . . . Robots Corrupted 4 | . . . . . 2 2 . . . . Combat Hostiles 3 | . . . . . 2 1 . . . . Parts Fried 15 | . . . . . 4 11 . . . . Impact Corruptions . | . . . . . . . . . . . Robots Melted . | . . . . . . . . . . . Combat Hostiles . | . . . . . . . . . . . Parts Melted 3 | . . . . 1 2 . . . . . Heat Transferred 1684 | . . . . 333 1151 200 . . . . Parts Sabotaged . | . . . . . . . . . . . Parts Stolen . | . . . . . . . . . . . Parts Stripped . | . . . . . . . . . . . Power Chain Reactions 11 | . . . . . 6 5 . . . . Missiles Intercepted . | . . . . . . . . . . . Alert | -11 -10 -10 -10 -9 -8 -7 -7 -7 -7 -7 ------- Run | Scr Mat Min Exi Min Mat Fac Low Low Zio Dee Peak Influence 1328 | 10 306 108 . 120 259 1328 . . . . Initial 18 | . 6 18 . . . . . . . . Average 177 | 8 149 40 . 33 74 600 . . . . Maximum Alert Level 4 | . 1 . . . 1 4 . . . . Low Security (%) 77 | 100 90 100 . 100 89 14 . . . . Level 1 5 | . 9 . . . 10 . . . . . Level 2 12 | . . . . . . 63 . . . . Level 3 2 | . . . . . . 10 . . . . Level 4 2 | . . . . . . 10 . . . . Level 5 . | . . . . . . . . . . . High Security . | . . . . . . . . . . . Max Security . | . . . . . . . . . . . Squads Dispatched 9 | . 1 . . . 1 7 . . . . Investigation 3 | . . . . . . 3 . . . . Extermination 2 | . . . . . . 2 . . . . Reinforcement 4 | . 1 . . . 1 2 . . . . Assault . | . . . . . . . . . . . Garrison . | . . . . . . . . . . . Intercept . | . . . . . . . . . . . Construction Impeded 1 | . . . . . 1 . . . . . Haulers Reinforced 1 | . . . . . . 1 . . . . Stealth | -11 -10 -10 -10 -9 -8 -7 -7 -7 -7 -7 --------- Run | Scr Mat Min Exi Min Mat Fac Low Low Zio Dee Distress Signals 6 | . 2 . . . 2 2 . . . . Communications Jammed . | . . . . . . . . . . . Distress Signals . | . . . . . . . . . . . Times Spotted 92 | . 16 1 . 5 27 31 1 5 . 6 Peak Tracking Total 8 | . 4 1 . 3 6 8 1 4 . 6 Tactical Retreats 11 | . 1 . . . 2 5 1 2 . . Traps | -11 -10 -10 -10 -9 -8 -7 -7 -7 -7 -7 ------- Run | Scr Mat Min Exi Min Mat Fac Low Low Zio Dee Traps Triggered 4 | . . . . . . 4 . . . . Indirectly 4 | . . . . . . 4 . . . . Trap Hack Attempts . | . . . . . . . . . . . Triggered . | . . . . . . . . . . . Disarmed . | . . . . . . . . . . . Reprogrammed . | . . . . . . . . . . . Reused . | . . . . . . . . . . . Traps Extracted . | . . . . . . . . . . . Installed . | . . . . . . . . . . . Triggered . | . . . . . . . . . . . Machines | -11 -10 -10 -10 -9 -8 -7 -7 -7 -7 -7 ---------- Run | Scr Mat Min Exi Min Mat Fac Low Low Zio Dee Machines Disabled 31 | . 2 . . . 9 18 . . . 2 Max in Single Turn 10 | . 1 . . . 2 10 . . . . Garrison Access 2 | . . . . . 1 1 . . . . Machines Sabotaged . | . . . . . . . . . . . Garrisons Compromised . | . . . . . . . . . . . Overloaded Fab Kills . | . . . . . . . . . . . Fab Network Shutdowns 1 | . . . . . . 1 . . . . Hacking | -11 -10 -10 -10 -9 -8 -7 -7 -7 -7 -7 --------- Run | Scr Mat Min Exi Min Mat Fac Low Low Zio Dee Machines Accessed 40 | . 7 . 1 2 10 18 . 1 1 . Terminals 22 | . 6 . . . 5 11 . . . . Fabricators 4 | . . . . . . 4 . . . . Repair Stations 1 | . . . . . 1 . . . . . Recycling Units 4 | . 1 . . . 2 1 . . . . Scanalyzers 2 | . . . . . 1 1 . . . . Garrison Access 2 | . . . . . 1 1 . . . . Total Hacks 112 | . 23 . 1 2 31 49 . 1 5 . Successful 73 | . 14 . 1 2 22 28 . 1 5 . Failed 38 | . 9 . . . 9 20 . . . . Catastrophic 5 | . 1 . . . 2 2 . . . . Database Lockouts 1 | . . . . . . 1 . . . . Manual 52 | . 18 . 1 . 11 22 . . . . Terminals 65 | . 20 . . . 14 31 . . . . Fabricators 9 | . . . . . . 9 . . . . Repair Stations 3 | . . . . . 3 . . . . . Recycling Units 11 | . 3 . . . 6 2 . . . . Scanalyzers 12 | . . . . . 7 5 . . . . Garrison Access 3 | . . . . . 1 2 . . . . Terminal Hacks 39 | . 8 . 1 2 9 13 . 1 5 . Part Schematic 7 | . . . . . 1 1 . . 5 . Prototype ID Bank 7 | . 3 . . . 2 2 . . . . Open Door 3 | . . . . 2 . . . 1 . . Branch Access Points 1 | . . . . . . 1 . . . . Terminal Index 2 | . 1 . . . . 1 . . . . Fabricator Index 1 | . . . . . . 1 . . . . Scanalyzer Index 1 | . . . . . . 1 . . . . Alert Level 2 | . . . . . 1 1 . . . . Unreport Threat 5 | . . . . . 3 2 . . . . Locate Traps 2 | . 1 . . . . 1 . . . . Hauler Manifests 2 | . 1 . . . . 1 . . . . Registered Components 1 | . . . . . 1 . . . . . Zone Layout 4 | . 2 . . . 1 1 . . . . EX-Prototype ID Bank 1 | . . . 1 . . . . . . . Fabricator Hacks 6 | . . . . . . 6 . . . . Load Schematic 3 | . . . . . . 3 . . . . Build 3 | . . . . . . 3 . . . . Repair Station Hacks 1 | . . . . . 1 . . . . . Scan Component 1 | . . . . . 1 . . . . . Recycling Unit Hacks 7 | . 2 . . . 3 2 . . . . Report Inventory 2 | . . . . . 2 . . . . . Retrieve Matter 2 | . 1 . . . . 1 . . . . Retrieve Components 3 | . 1 . . . 1 1 . . . . Scanalyzer 10 | . . . . . 7 3 . . . . Insert Component 4 | . . . . . 3 1 . . . . Analyze 6 | . . . . . 4 2 . . . . Garrison Access Hacks 1 | . . . . . 1 . . . . . Seal Access 1 | . . . . . 1 . . . . . Unauthorized Hacks 9 | . 4 . . . 1 4 . . . . Terminals 6 | . 4 . . . . 2 . . . . Track 4 | . 3 . . . . 1 . . . . Botnet 1 | . . . . . . 1 . . . . Operators 1 | . 1 . . . . . . . . . Fabricators 1 | . . . . . . 1 . . . . Siphon 1 | . . . . . . 1 . . . . Repair Stations . | . . . . . . . . . . . Recycling Units 1 | . . . . . 1 . . . . . Mask 1 | . . . . . 1 . . . . . Scanalyzers . | . . . . . . . . . . . Garrison Access 1 | . . . . . . 1 . . . . Jam 1 | . . . . . . 1 . . . . Data Cores Recovered 1 | . 1 . . . . . . . . . Used . | . . . . . . . . . . . Hacking Detections 33 | . 7 . . . 8 18 . . . . Full Trace Events 2 | . . . . . . 2 . . . . Feedback Events . | . . . . . . . . . . . Feedback Blocked . | . . . . . . . . . . . Robot Schematics Acquired . | . . . . . . . . . . . Robots Built . | . . . . . . . . . . . Matter . | . . . . . . . . . . . Time . | . . . . . . . . . . . Total Robot Build Rating . | . . . . . . . . . . . Part Schematics Acquired 11 | . . . . . 4 2 . . 5 . Parts Built 3 | . . . . . . 3 . . . . Matter 573 | . . . . . . 573 . . . . Time 198 | . . . . . . 198 . . . . Total Part Build Rating 10 | . . . . . . 10 . . . . Parts Repaired . | . . . . . . . . . . . Time . | . . . . . . . . . . . Parts Recycled . | . . . . . . . . . . . Recycled Matter . | . . . . . . . . . . . Retrieved Matter . | . . . . . . . . . . . Retrieved Components 4 | . . . . . 2 2 . . . . Parts Scanalyzed 4 | . . . . . 3 1 . . . . Part Schematics Acquired 4 | . . . . . 3 1 . . . . Parts Damaged 1 | . . . . . 1 . . . . . Bothacking | -11 -10 -10 -10 -9 -8 -7 -7 -7 -7 -7 ------------ Run | Scr Mat Min Exi Min Mat Fac Low Low Zio Dee Used RIF Installer . | . . . . . . . . . . . Robots Hacked . | . . . . . . . . . . . Non-combat . | . . . . . . . . . . . Combat . | . . . . . . . . . . . Robot Hacks Applied . | . . . . . . . . . . . Relay Couplers Released . | . . . . . . . . . . . Robots Rewired . | . . . . . . . . . . . Allies Hacked . | . . . . . . . . . . . Hacks Repelled . | . . . . . . . . . . . Allies | -11 -10 -10 -10 -9 -8 -7 -7 -7 -7 -7 -------- Run | Scr Mat Min Exi Min Mat Fac Low Low Zio Dee Total Allies 4 | . . . . . . . . . 4 . Largest Group 4 | . . . . . . . . . 4 4 Highest-Rated Group 115 | . . . . . . . . . 115 115 Highest-Rated Ally 42 | . . . . . . . . . 42 42 Total Orders . | . . . . . . . . . . . Ally Attacks 25 | . . . . . . . . . . 25 Total Damage 1682 | . . . . . . . . . . 1682 Kills 8 | . . . . . . . . . . 8 Allies Corrupted . | . . . . . . . . . . . Allies Melted . | . . . . . . . . . . . Intel | -11 -10 -10 -10 -9 -8 -7 -7 -7 -7 -7 ------- Run | Scr Mat Min Exi Min Mat Fac Low Low Zio Dee Robot Analysis Total . | . . . . . . . . . . . Derelict Logs Recovered 5 | . . 1 . 1 . . 2 . 1 . Drone Launches 4 | . . . . . . . . . . 4 Drone Recoveries 1 | . . . . . . . . . . 1 Exploration | -11 -10 -10 -10 -9 -8 -7 -7 -7 -7 -7 ------------- Run | Scr Mat Min Exi Min Mat Fac Low Low Zio Dee Turns Passed 35563 | 41 847 872 462 1195 2480 1366 585 937 26455 323 Spaces Moved 12845 | 21 610 585 318 613 1159 1781 618 802 6034 304 Core 4414 | 2 . . . . . . . . 4410 2 Treads 2270 | 1 115 263 115 613 1159 4 . . . . Legs . | . . . . . . . . . . . Wheels 1038 | 18 495 322 203 . . . . . . . Hover . | . . . . . . . . . . . Flight 5123 | . . . . . . 1777 618 802 1624 302 Fastest Speed 14 | 90 90 120 120 160 160 26 14 14 26 14 Average Speed 247 | 113 110 146 141 176 166 50 92 88 403 72 Slowest Speed 750 | 250 180 180 180 200 180 160 97 97 750 350 Overloaded Moves 45 | . . . . . . . 7 20 . 18 Propulsion Burnouts . | . . . . . . . . . . . Robots Hopped 12 | . . . . . . 12 . . . . Cave-ins Triggered . | . . . . . . . . . . . Exploration Rate (%) 64 | 3 78 99 76 86 65 42 70 69 85 41 Regions Visited 10 Branch Regions 7 Pre-discovered Areas 5 | . . . . 1 . . 1 . 3 . Known Exits Taken 4 | . . . . . . 1 1 1 1 . Unknown Exits Taken 6 | 1 1 1 1 1 1 . . . . . Scrap Searched 9 | . . 1 . 1 . . 1 2 4 . Spaces Dug 176 | . 55 7 . . 52 58 . 2 2 . Terrain Destroyed 293 | . 55 7 . 2 117 103 . 2 2 5 Melee 14 | . . . . . 5 5 . 2 2 . Projectile 5 | . . . . . . . . . . 5 AOE 274 | . 55 7 . 2 112 98 . . . . Terrain Rammed . | . . . . . . . . . . . Walls Destroyed . | . . . . . . . . . . . Machines Disabled . | . . . . . . . . . . . Actions | -11 -10 -10 -10 -9 -8 -7 -7 -7 -7 -7 --------- Run | Scr Mat Min Exi Min Mat Fac Low Low Zio Dee Total 16263 | 33 708 595 332 697 1593 2172 626 1021 8099 387 Wait 2793 | . 25 . . 32 234 196 . 212 2033 61 Move 12813 | 20 609 584 317 612 1158 1758 617 801 6033 304 Hop 10 | . . . . . . 10 . . . . Pick Up 87 | . 11 3 3 10 28 32 . . . . Fast Attach 58 | 3 1 . 1 3 27 9 2 2 7 3 Attach 35 | 2 . . 2 1 7 22 . . . 1 Detach 14 | . . . . . 6 8 . . . . Swap 70 | . 21 3 2 5 15 24 . . . . Drop 144 | 4 4 3 7 15 40 59 2 2 6 2 Fire 188 | 4 37 2 . 17 72 42 . . . 14 Melee 47 | . . . . . 5 12 5 4 20 1 Ram . | . . . . . . . . . . . Kick . | . . . . . . . . . . . Crush 3 | . . . . 2 1 . . . . . Escape Stasis . | . . . . . . . . . . . Rewire 1 | . . . . . . . . . . 1 Trap . | . . . . . . . . . . . Miscellaneous . | . . . . . . . . . . . Route ------- -11/Scrapyard -10/Materials (discovered 3 exits: [*Mat x2] / [*Min]) -10/Mines (discovered 3 exits: [*Mat x2] / *Exi) -10/Exiles (discovered 2 exits: *Min x2) -9/Mines -8/Materials (discovered 2 exits: *Fac x2) -7/Factory (discovered 2 exits: *Low x2) -7/Lower Caves -7/Lower Caves (discovered 2 exits: *Fac / *Zio) -7/Zion (discovered 2 exits: *Dee / [*Pro]) -7/Deep Caves History --------- Turn | Location | Event 13 | -11/Scrapyard | Discovered new exit (range 3) 42 | -11/Scrapyard | Entered Materials 316 | -10/Materials | Build established: Mutant 334 | -10/Materials | Discovered new exit (range 16) 590 | -10/Materials | Discovered new exit (range 13) 707 | -10/Materials | Discovered new exit (range 7) 889 | -10/Materials | Entered Mines 914 | -10/Mines | Met a Derelict bent on vengeance 1095 | -10/Mines | Deemed a non-threat by the Exiles lab entrance 1095 | -10/Mines | Discovered new exit (range 5) 1179 | -10/Mines | Learned Materials terminal intel 1296 | -10/Mines | Discovered new exit (range 11) 1558 | -10/Mines | Discovered new exit (range 9) 1761 | -10/Mines | Entered Exiles 1790 | -10/Exiles | Discovered new exit (range 15) 1810 | -10/Exiles | Met 8R-AWN 1835 | -10/Exiles | Met EX-HEX 1893 | -10/Exiles | Met EX-BIN 1914 | -10/Exiles | Aligned with FarCom system 1916 | -10/Exiles | Given EX-Vault access code 1959 | -10/Exiles | Opened EX-Vault 1973 | -10/Exiles | Found Flying Fortress v7 1978 | -10/Exiles | Found Chronowheel 1998 | -10/Exiles | Found Cloak of Protection 2022 | -10/Exiles | Warned to stay clear of 0b10 Research branches 2059 | -10/Exiles | Met EX-DEC 2120 | -10/Exiles | Visited The Gauntlet 2206 | -10/Exiles | Discovered new exit (range 14) 2223 | -10/Exiles | Stole three prototypes: Flying Fortress v7, Cloak of Protection, Chronowheel 2223 | -10/Exiles | Entered Mines 2413 | -9/Mines | Learned location of Storage (-9) 2605 | -9/Mines | Found the Drone Emporium 2620 | -9/Mines | Found Prototype Device 2663 | -9/Mines | Discovered new exit (range 8) 2670 | -9/Mines | Received a Rocket Launcher from a helpful Derelict 3108 | -9/Mines | Met a Derelict who couldn't figure out how to use a Trap Extractor 3418 | -9/Mines | Entered Materials 3418 | -8/Materials | Evolved 4 slots: Propulsion x2, Utility x2 3419 | -8/Materials | Loaded intel: 12 terminal locations 3419 | -8/Materials | Identified Thief Drone Bay 4031 | -8/Materials | Discovered new exit (range 9) 5136 | -8/Materials | Build established: Hauler-Mutant 5269 | -8/Materials | Discovered new exit (range 16) 5734 | -8/Materials | Build established: Scavenger-Mutant 5898 | -8/Materials | Entered Factory 5898 | -7/Factory | Evolved 2 slots: Utility x2 5899 | -7/Factory | Identified exit to Lower Caves 5900 | -7/Factory | FarCom data flow suspended 5950 | -7/Factory | Central database locked down 6276 | -7/Factory | Build established: Hacker-Mutant 6413 | -7/Factory | Fabricated Adv. Signal Interpreter (x2) 6714 | -7/Factory | Build established: Hauler-Mutant 7034 | -7/Factory | Fabricated Cld. VTOL Module? 7121 | -7/Factory | Local fabrication network quarantined 7237 | -7/Factory | Activated Chronowheel 7264 | -7/Factory | Entered Lower Caves 7606 | -7/Lower Caves | Encountered a Warlord checkpoint 7609 | -7/Lower Caves | Learned location of Zion (-7) 7610 | -7/Lower Caves | Build established: Assassin 7733 | -7/Lower Caves | Discovered new exit (range 10) 7740 | -7/Lower Caves | Identified exit to Lower Caves 7849 | -7/Lower Caves | Entered another Lower Caves area 7865 | -7/Lower Caves | Discovered new exit (range 3) 7867 | -7/Lower Caves | Identified exit to Factory 8771 | -7/Lower Caves | Discovered new exit (range 12) 8780 | -7/Lower Caves | Spotted B-75 Beast 8785 | -7/Lower Caves | Identified exit to Zion 8786 | -7/Lower Caves | Entered Zion 8826 | -7/Zion | Found Prototype Device 8826 | -7/Zion | Identified Phasing AFG 8857 | -7/Zion | Discovered new exit (range 16) 8923 | -7/Zion | System corruption cleaned by Quarantine Array 9034 | -7/Zion | Gained Derelict followers 9072 | -7/Zion | Learned Factory emergency access door positions 22883 | -7/Zion | Given A8's code to call for help 22925 | -7/Zion | Learned location of Warlord (-5) 34955 | -7/Zion | Discovered new exit (range 11) 35139 | -7/Zion | Identified exit to Deep Caves 35139 | -7/Zion | Saw the warning signs outside the Deep Caves entrance 35241 | -7/Zion | Entered Deep Caves 35241 | -7/Deep Caves | Accompanied by 4 allies 35489 | -7/Deep Caves | Attacked by Z-Imprinter 35503 | -7/Deep Caves | Z-Facility disabled 35522 | -7/Deep Caves | Core integrity fell below 50% 35538 | -7/Deep Caves | Core integrity fell below 20% 35564 | -7/Deep Caves | Destroyed by 4E-1OY(z) with Zionite Laser-S Last Messages --------------- 35502_ Thief Drone released from Thief Drone Bay. 35503_ Thief Drone sneak attacks. 35505_ DW-MWZ(z) Prototype Hover Unit ripped off. 35509_ Thief Drone destroyed. 35512_ Acquired Prototype Energy Gun. 35512_ Identified Zio. Laser-M. 35517_ Adv. Sensor Array destroyed. 35521_ Zio. Laser-M destroyed. 35524_ Cld. VTOL Module destroyed. 35531_ Hvy. Battle Rifle destroyed. 35532_ Dropped Thief Drone Bay. 35533_ Lgt. Angular Momentum Engine destroyed. 35534_ Cld. VTOL Module destroyed. 35534_ Acquired 17 matter. 35536_ Acquired Chainsword. 35538_ Acquired Lgt. Treads. 35541_ Acquired 20 matter. 35543_ Chainsword destroyed. 35544_ Lgt. Treads destroyed. 35553_ Cld. VTOL Module destroyed. Map ----- +----------------------------------------------------+ | ?????????????????????????????????????????????????? | | ???????????????????????????????????????????????? # | | ??????????????????????????????????????????????? | | ??????????????????????????????????????????????? | | ?????????????????????????????????????????????? | | ?????????????????????????????????????????????? | | ?????????????????????????????????????????????? | | ????????????????????????????????????????????? | | ????????????????????????????????????????????? | | ???????????????????????????????????????????? | | ??????????????????????? ???????????????? | | ????????????????????? "????????????? | | ?????????????????? "????????????" | | ???????????????? "???????????? | | ?????????????? "????"" ???? | | ?????????????? ""?"" ?? | | ????????????? """ ? | | ????????????? "" | | ???????????? " | | ???????????? " | | ???????????? | | ??????????? | | ??????????? | | ?????????? | | ?????????? | | ?????????? @ | | ?????????? | | ?????????? | | ??????????? | | ??????????? | | ???????????? | | ???????????? | | ???????????? | | ????????????? | | ????????????? | | ?????????????? | | ?????????????? | | ??????????????? | | ??????????????? | | ??????????????? | | ??????????????? zz """ | | ???????????????? ### "## """"## | | ????????????????????# #?## "" ###? | | ????????????????????####???### ########??? | | ?????????????????????????????###########?????????? | | ?????????????????????????????????????????????????? | | | | | | | | | +----------------------------------------------------+ Best States ------------- Heat Dissipation 34 Coolant Potential 65 Energy Generation 18 Energy Capacity 450 Matter Stores 300 Matter Capacity 300 Sight Range 22 Robot Scan Range 16 Terrain Scan Range 24 Terrain Scan Density 10 Armor Coverage 375 Evasion (%) 66 Recoil Reduction 4 Offensive Hacking 20 Item Schematics ----------------- Med. Storage Unit | -8/Materials | Hacked Imp. VTOL Module | -8/Materials | Scanalyzed Lrn. Tractor Beam | -8/Materials | Scanalyzed Adv. EMP Blaster | -8/Materials | Scanalyzed Adv. Signal Interpreter | -7/Factory | Hacked Cld. VTOL Module | -7/Factory | Scanalyzed Riot Gun | -7/Zion | Free Hvy. Battle Rifle | -7/Zion | Free Battle Cannon | -7/Zion | Free Flamer | -7/Zion | Free Ripper | -7/Zion | Free Robot Schematics ------------------ None Fabricated ------------ Adv. Signal Interpreter | x2 | -7/Factory Cld. VTOL Module | x1 | -7/Factory Alien Tech Used ----------------- None Achievements -------------- None Challenges ------------ None Game ------ Seed HoverTitaniumScanner Manual? 0 Play Time 03:03:52 Cumulative 201.3 hours Start 2021.03.26 @ 17:46:53 End 2021.03.26 @ 21:18:58 Sessions 1 Manual Loads 0 Difficulty Rogue Special Mode None Game No. 123 Rogue 123 Adventurer 0 Explorer 0 Win Type - Total 3 Types 3/0/0/0/0/0/0/0/0 Lore% 42 Gallery% 66 Achievement% 50 Wizard Run 0 Options --------- ASCII 0 Keyboard 0 Movement Numpad Keybinds 0 Fullscreen 2 Font 18/TerminusBold Map View 76x50 Tactical HUD 1 Map Filters NONE Filters NONE Steam 1 RUN: 385c6b6b-53dd-40d1-a06c-c363a9439ce1